fUST/lending_fUST_20240802
["ID","MTS","AMOUNT","RATE_DAILY","PERIOD"]
[333858328,1722571865300,-500.0,0.0001452,2]
[333858329,1722571865310,-500.0,0.0001452,2]
[333858330,1722571865320,-588.77,0.0001452,2]
[333858331,1722571865332,-500.0,0.0001452,2]
[333858332,1722571865341,-500.0,0.0001452,2]
[333858333,1722571865351,-500.0,0.0001452,2]
[333858334,1722571865363,-500.0,0.0001452,2]
[333858335,1722571865371,-500.0,0.0001452,2]
[333858336,1722571865381,-500.0,0.0001452,2]
[333858337,1722571865390,-583.6,0.0001452,2]
[333858338,1722571865400,-909.86,0.0001452,2]
[333858339,1722571865409,-512.1125151,0.0001452,2]
[333858340,1722571865419,-462.02195341,0.0001452,2]
[333858341,1722571865429,-3027.67,0.0001452,2]
[333858342,1722571865441,-504.43257307,0.0001452,2]
[333858343,1722571865451,-500.0,0.0001452,2]
[333858344,1722571865461,-500.0,0.0001452,2]
[333858345,1722571865471,-500.0,0.0001452,2]
[333858346,1722571865481,-694.78,0.0001452,2]
[333858347,1722571865492,-500.0,0.0001452,2]
[333858348,1722571865502,-906.83,0.0001452,2]
[333858349,1722571865512,-977.38,0.0001452,2]
[333858350,1722571865522,-500.0,0.0001452,2]
[333858351,1722571865531,-500.0,0.0001452,2]
[333858352,1722571865541,-500.0,0.0001452,2]
[333858353,1722571865552,-760.21,0.0001452,2]
[333858354,1722571865561,-889.88,0.0001452,2]
[333858355,1722571865571,-1975.35,0.0001452,2]
[333858356,1722571865581,-500.0,0.0001452,2]
[333858357,1722571865590,-500.0,0.0001452,2]
[333858358,1722571865600,-500.0,0.0001452,2]
[333858359,1722571865610,-837.75,0.0001452,2]
[333858360,1722571865620,-557.89,0.0001452,2]
[333858361,1722571865630,-500.0,0.0001452,2]
[333858362,1722571865639,-711.79,0.0001452,2]
[333858363,1722571865648,-500.0,0.0001452,2]
[333858364,1722571865658,-500.0,0.0001452,2]
[333858365,1722571865667,-653.29,0.0001452,2]
[333858366,1722571865678,-779.13,0.0001452,2]
[333858367,1722571865689,-500.0,0.0001452,2]
[333858368,1722571865699,-500.0,0.0001452,2]
[333858369,1722571865710,-500.0,0.0001452,2]
[333858370,1722571865723,-500.0,0.0001452,2]
[333858371,1722571865732,-500.0,0.0001452,2]
[333858372,1722571865742,-781.45,0.0001452,2]
[333858373,1722571865751,-500.0,0.0001452,2]
[333858374,1722571865761,-500.0,0.0001452,2]
[333858375,1722571865770,-500.0,0.0001452,2]
[333858376,1722571865780,-500.0,0.0001452,2]
[333858377,1722571865790,-500.0,0.0001452,2]
[333858378,1722571865800,-726.78,0.0001452,2]
[333858379,1722571865810,-106.87576217,0.0001452,2]
[333858384,1722572120659,244.93,0.00027,120]
[333858427,1722573032074,-161.175653,0.00012986,2]
[333858428,1722573032084,-1535.54576504,0.00013598,2]
[333858429,1722573032094,-5596.81063198,0.00013688,2]
[333858430,1722573032103,-5000.0,0.0001369,2]
[333858431,1722573032112,-240.0,0.00013697,2]
[333858432,1722573032122,-500.0,0.00013698,2]
[333858433,1722573032132,-500.0,0.00013698,2]
[333858434,1722573032141,-500.0,0.00013698,2]
[333858435,1722573032151,-500.0,0.00013698,2]
[333858436,1722573032159,-500.0,0.00013698,2]
[333858437,1722573032169,-500.0,0.00013698,2]
[333858438,1722573032178,-500.0,0.00013698,2]
[333858439,1722573032188,-500.0,0.00013698,2]
[333858440,1722573032197,-500.0,0.00013698,2]
[333858441,1722573032206,-496.67365437,0.00013698,2]
[333858442,1722573032215,-500.0,0.00013698,2]
[333858443,1722573032225,-500.0,0.00013698,2]
[333858444,1722573032234,-500.0,0.00013698,2]
[333858445,1722573032243,-500.0,0.00013698,2]
[333858446,1722573032252,-500.0,0.00013698,2]
[333858447,1722573032261,-500.0,0.00013698,2]
[333858448,1722573032270,-588.15,0.00013698,2]
[333858449,1722573032279,-500.0,0.00013698,2]
[333858450,1722573032288,-500.0,0.00013698,2]
[333858451,1722573032298,-500.0,0.00013698,2]
[333858452,1722573032307,-500.0,0.00013698,2]
[333858453,1722573032316,-500.0,0.00013698,2]
[333858454,1722573032325,-500.0,0.00013698,2]
[333858455,1722573032334,-523.04,0.00013698,2]
[333858456,1722573032344,-500.0,0.00013698,2]
[333858457,1722573032353,-605.17,0.00013698,2]
[333858458,1722573032362,-500.0,0.00013698,2]
[333858459,1722573032371,-500.0,0.00013698,2]
[333858460,1722573032382,-559.11,0.00013698,2]
[333858461,1722573032391,-500.0,0.00013698,2]
[333858462,1722573032400,-615.28,0.00013698,2]
[333858463,1722573032410,-500.0,0.00013698,2]
[333858464,1722573032419,-500.0,0.00013698,2]
[333858465,1722573032429,-500.0,0.00013698,2]
[333858466,1722573032438,-500.0,0.00013698,2]
[333858467,1722573032447,-225.52951447,0.00013698,2]
[333858468,1722573032456,-500.0,0.00013698,2]
[333858469,1722573032465,-500.0,0.00013698,2]
[333858470,1722573032475,-500.0,0.00013698,2]
[333858471,1722573032484,-500.0,0.00013698,2]
[333858472,1722573032494,-500.0,0.00013698,2]
[333858473,1722573032503,-500.0,0.00013698,2]
[333858474,1722573032512,-500.0,0.00013698,2]
[333858475,1722573032521,-500.0,0.00013698,2]
[333858476,1722573032530,-500.0,0.00013698,2]
[333858477,1722573032540,-548.36820562,0.00013698,2]
[333858478,1722573032550,-500.0,0.00013698,2]
[333858479,1722573032559,-1171.16,0.00013698,2]
[333858480,1722573032568,-500.0,0.00013698,2]
[333858481,1722573032577,-500.0,0.00013698,2]
[333858482,1722573032586,-500.0,0.00013698,2]
[333858483,1722573032595,-500.0,0.00013698,2]
[333858484,1722573032606,-500.0,0.00013698,2]
[333858485,1722573032615,-500.0,0.00013698,2]
[333858486,1722573032624,-500.0,0.00013698,2]
[333858487,1722573032634,-2515.7,0.00013698,2]
[333858488,1722573032644,-500.0,0.00013698,2]
[333858489,1722573032653,-665.82,0.00013698,2]
[333858490,1722573032662,-500.0,0.00013698,2]
[333858491,1722573032671,-500.0,0.00013698,2]
[333858492,1722573032680,-500.0,0.00013698,2]
[333858493,1722573032689,-500.0,0.00013698,2]
[333858494,1722573032698,-500.0,0.00013698,2]
[333858495,1722573032707,-500.0,0.00013698,2]
[333858496,1722573032716,-39.59584321,0.00013698,2]
[333858497,1722573032729,-556.34415679,0.00013698,2]
[333858498,1722573032742,-448.79228526,0.00013698,2]
[333858499,1722573032751,-500.0,0.00013698,2]
[333858500,1722573032760,-500.0,0.00013698,2]
[333858501,1722573032769,-500.0,0.00013698,2]
[333858502,1722573032778,-500.0,0.00013698,2]
[333858503,1722573032787,-500.0,0.00013698,2]
[333858504,1722573032797,-500.0,0.00013698,2]
[333858505,1722573032806,-500.0,0.00013698,2]
[333858506,1722573032816,-500.0,0.00013698,2]
[333858507,1722573032825,-589.39,0.00013698,2]
[333858508,1722573032834,-500.0,0.00013698,2]
[333858509,1722573032843,-500.0,0.00013698,2]
[333858510,1722573032852,-500.0,0.00013698,2]
[333858511,1722573032861,-755.89,0.00013698,2]
[333858512,1722573032870,-374.17638685,0.00013698,2]
[333858519,1722573038010,-125.82361315,0.00013698,2]
[333858522,1722573038020,-500.0,0.00013698,2]
[333858524,1722573038030,-500.0,0.00013698,2]
[333858525,1722573038040,-516.57,0.00013698,2]
[333858526,1722573038049,-500.0,0.00013698,2]
[333858527,1722573038058,-500.0,0.00013698,2]
[333858528,1722573038067,-500.0,0.00013698,2]
[333858529,1722573038077,-500.0,0.00013698,2]
[333858530,1722573038086,-500.0,0.00013698,2]
[333858531,1722573038096,-500.0,0.00013698,2]
[333858532,1722573038106,-645.97721071,0.00013698,2]
[333858533,1722573038116,-500.0,0.00013698,2]
[333858534,1722573038125,-500.0,0.00013698,2]
[333858535,1722573038137,-506.11513094,0.00013698,2]
[333858536,1722573038148,-500.0,0.00013698,2]
[333858537,1722573038158,-516.3147704,0.00013698,2]
[333858538,1722573038167,-505.96505168,0.00013698,2]
[333858539,1722573038178,-500.0,0.00013698,2]
[333858540,1722573038190,-503.47351163,0.00013698,2]
[333858541,1722573038199,-500.0,0.00013698,2]
[333858542,1722573038208,-500.0,0.00013698,2]
[333858543,1722573038218,-500.0,0.00013698,2]
[333858544,1722573038228,-624.10497013,0.00013698,2]
[333858545,1722573038237,-500.0,0.00013698,2]
[333858546,1722573038246,-500.0,0.00013698,2]
[333858547,1722573038256,-500.0,0.00013698,2]
[333858548,1722573038265,-500.0,0.00013698,2]
[333858549,1722573038276,-500.0,0.00013698,2]
[333858550,1722573038286,-500.0,0.00013698,2]
[333858551,1722573038296,-500.0,0.00013698,2]
[333858552,1722573038306,-500.0,0.00013698,2]
[333858553,1722573038315,-423.15574189,0.00013698,2]
[333858554,1722573038423,-76.84425811,0.00013698,2]
[333858557,1722573038432,-500.0,0.00013698,2]
[333858560,1722573038442,-1086.33,0.00013698,2]
[333858562,1722573038452,-500.0,0.00013698,2]
[333858564,1722573038462,-500.0,0.00013698,2]
[333858565,1722573038473,-500.0,0.00013698,2]
[333858566,1722573038483,-500.0,0.00013698,2]
[333858567,1722573038503,-500.0,0.00013698,2]
[333858568,1722573038513,-2428.12,0.00013698,2]
[333858569,1722573038523,-2428.12,0.00013698,2]
[333858570,1722573038533,-2428.12,0.00013698,2]
[333858571,1722573038543,-723.17,0.00013698,2]
[333858572,1722573038552,-500.0,0.00013698,2]
[333858573,1722573038562,-500.0,0.00013698,2]
[333858574,1722573038572,-500.0,0.00013698,2]
[333858575,1722573038581,-504.476711,0.00013698,2]
[333858576,1722573038591,-500.0,0.00013698,2]
[333858577,1722573038600,-500.0,0.00013698,2]
[333858578,1722573038610,-500.0,0.00013698,2]
[333858579,1722573038621,-500.0,0.00013698,2]
[333858580,1722573038630,-295.34339789,0.00013698,2]
[333858606,1722573040238,-204.65660211,0.00013698,2]
[333858608,1722573040247,-297.3254856,0.00013698,2]
[333858628,1722573043087,-202.6745144,0.00013698,2]
[333858629,1722573043098,-500.0,0.00013698,2]
[333858630,1722573043110,-1200.7,0.00013698,2]
[333858631,1722573043122,-500.0,0.00013698,2]
[333858632,1722573043131,-500.0,0.00013698,2]
[333858633,1722573043142,-500.0,0.00013698,2]
[333858634,1722573043152,-907.17,0.00013698,2]
[333858635,1722573043161,-500.0,0.00013698,2]
[333858636,1722573043171,-1085.06,0.00013698,2]
[333858637,1722573043180,-500.0,0.00013698,2]
[333858638,1722573043189,-204.3954856,0.00013698,2]
[333858694,1722574232652,-156.32424362,0.00012119,2]
[333858695,1722574232662,-185.0349091,0.00012286,2]
[333858696,1722574232673,-161.175653,0.00012986,2]
[333858697,1722574232682,-268.51472428,0.00013434,2]
[333858698,1722574232704,-99.29257025,0.00013434,2]
[333858699,1722574232716,-300.0,0.00013687,2]
[333858700,1722574232726,-8677.6696715,0.00013688,2]
[333858701,1722574232736,-9560.31635183,0.00013698,2]
[333858702,1722574232749,-545.64000001,0.00013698,2]
[333858703,1722574232761,-13234.47883333,0.00013698,2]
[333858956,1722574238448,-161.175653,0.00012986,2]
[333858958,1722574238460,-1543.88409479,0.00013698,5]
[333859412,1722574243410,-1350.04740344,0.00013698,5]
[333859414,1722574243420,-5988.3838275,0.00013698,2]
[333859416,1722574243430,-750.88110025,0.00013698,2]
[333859418,1722574243440,-326.2391109,0.00013698,2]
[333859420,1722574243452,-173.7608891,0.00013698,2]
[333859422,1722574243462,-500.0,0.00013698,2]
[333859425,1722574243471,-500.0,0.00013698,2]
[333859428,1722574243481,-500.0,0.00013698,2]
[333859431,1722574243490,-500.0,0.00013698,2]
[333859434,1722574243500,-500.0,0.00013698,2]
[333859437,1722574243510,-500.0,0.00013698,2]
[333859439,1722574243519,-500.0,0.00013698,2]
[333859441,1722574243528,-500.0,0.00013698,2]
[333859443,1722574243539,-500.0,0.00013698,2]
[333859445,1722574243550,-500.0,0.00013698,2]
[333859447,1722574243560,-500.0,0.00013698,2]
[333859449,1722574243570,-500.0,0.00013698,2]
[333859451,1722574243579,-500.0,0.00013698,2]
[333859453,1722574243589,-500.0,0.00013698,2]
[333859455,1722574243599,-500.0,0.00013698,2]
[333859457,1722574243609,-500.0,0.00013698,2]
[333859459,1722574243620,-500.0,0.00013698,2]
[333859461,1722574243630,-500.0,0.00013698,2]
[333859463,1722574243639,-323.14479158,0.00013698,2]
[333859466,1722574243651,-500.0,0.00013698,2]
[333859468,1722574243661,-500.0,0.00013698,2]
[333859470,1722574243672,-579.95,0.00013698,2]
[333859472,1722574243683,-479.3373117,0.00013698,2]
[333859694,1722574246668,-20.6626883,0.00013698,2]
[333859695,1722574246678,-241.1473117,0.00013698,2]
[333859696,1722574246691,-294.6626883,0.00013698,2]
[333859697,1722574246702,-226.93557239,0.00013698,2]
[333859698,1722574246712,-501.25,0.00013698,2]
[333859699,1722574246722,-500.0,0.00013698,2]
[333859700,1722574246733,-589.64,0.00013698,2]
[333859701,1722574246742,-500.0,0.00013698,2]
[333859702,1722574246752,-500.0,0.00013698,2]
[333859703,1722574246761,-500.0,0.00013698,2]
[333859704,1722574246772,-500.0,0.00013698,2]
[333859706,1722574246782,-395.36535221,0.00013698,2]
[333860326,1722574767102,231.34536444,9.999e-05,2]
[333860327,1722574833868,216.48875662,9.9e-05,2]
[333860328,1722574885779,13377.21020209,9.9e-05,2]
[333860329,1722574978052,1020.84896672,9.9e-05,2]
[333860330,1722575119041,278.20084821,9.999e-05,2]
[333860334,1722575303669,183.88486435,9.999e-05,2]
[333860386,1722575432552,-161.175653,0.00012986,2]
[333860388,1722575432563,-616.29182831,0.00013177,2]
[333860390,1722575432575,-3.89935007,0.00013177,2]
[333860392,1722575432587,-844.64890257,0.00013409,2]
[333860417,1722575438490,-518.02950139,0.00013409,2]
[333860616,1722575443557,-47.32159604,0.00013409,2]
[333860617,1722575443567,-258.80846222,0.00013564,2]
[333860618,1722575443579,-108.99883231,0.00013564,2]
[333860619,1722575443595,-4368.02922822,0.00013688,2]
[333860620,1722575443613,-466.68429788,0.0001369,2]
[333860627,1722575446641,-179.44280454,0.00013598,2]
[333860628,1722575446652,-2820.55719546,0.0001369,2]
[333860832,1722575563125,291.25271654,9.999e-05,2]
[333860847,1722575957894,209.11051331,9.999e-05,2]
[333860851,1722576075374,154.96132716,9.999e-05,2]
[333860852,1722576098992,155.10352943,9.999e-05,2]
[333860855,1722576108255,193.71340605,9.999e-05,2]
[333860856,1722576109762,155.11060454,9.999e-05,2]
[333860857,1722576127353,183.60855062,9.999e-05,2]
[333860858,1722576295077,2536.56164645,0.0001,2]
[333860860,1722576335908,3063.81854555,0.00027,120]
[333860889,1722576632624,-181.72,0.00010959,2]
[333860890,1722576632634,-138.72759917,0.00010959,2]
[333860897,1722576638634,-12.71240083,0.00010959,2]
[333860898,1722576638644,-757.2,0.00010959,2]
[333860899,1722576638654,-161.175653,0.00012986,2]
[333860900,1722576638664,-367.80729453,0.00013165,2]
[333860901,1722576638674,-477.2906358,0.000134,2]
[333860902,1722576638683,-1962.86802272,0.000134,2]
[333860903,1722576638693,-300.0,0.00013488,2]
[333860904,1722576638703,-1403.905365,0.00013489,2]
[333860905,1722576638713,-153.0,0.000135,2]
[333860906,1722576638722,-293.8328848,0.000135,2]
[333860907,1722576638732,-1585.61186011,0.00013598,2]
[333860908,1722576638741,-153.0,0.000136,2]
[333860909,1722576638751,-153.0,0.000136,2]
[333860910,1722576638760,-153.0,0.000136,2]
[333860911,1722576638769,-1446.96574912,0.00013688,5]
[333860912,1722576638779,-15157.789738,0.00013688,2]
[333860913,1722576638788,-500.0,0.00013698,2]
[333860914,1722576638797,-501.7351523,0.00013698,2]
[333860915,1722576638912,-500.0,0.00013698,2]
[333860916,1722576638922,-500.0,0.00013698,2]
[333860917,1722576638931,-500.0,0.00013698,2]
[333860918,1722576638941,-243.67090498,0.00013698,2]
[333860919,1722576638950,-500.0,0.00013698,2]
[333860920,1722576638959,-500.0,0.00013698,2]
[333860921,1722576638968,-375.49306859,0.00013698,2]
[333860922,1722576638977,-151.140364,0.00013698,2]
[333860923,1722576638987,-500.0,0.00013698,2]
[333860924,1722576638996,-246.51308563,0.00013698,2]
[333860925,1722576639006,-500.0,0.00013698,2]
[333860926,1722576639016,-500.0,0.00013698,2]
[333860927,1722576639025,-500.0,0.00013698,2]
[333860928,1722576639034,-500.0,0.00013698,2]
[333860929,1722576639043,-500.0,0.00013698,2]
[333860930,1722576639052,-500.0,0.00013698,2]
[333860931,1722576639062,-500.0,0.00013698,2]
[333860932,1722576639071,-563.65,0.00013698,2]
[333860933,1722576639080,-500.0,0.00013698,2]
[333860934,1722576639089,-500.0,0.00013698,2]
[333860935,1722576639099,-151.0,0.00013698,2]
[333860936,1722576639108,-151.00000098,0.00013698,2]
[333860937,1722576639117,-500.0,0.00013698,2]
[333860938,1722576639129,-503.4633429,0.00013698,2]
[333860939,1722576639138,-500.0,0.00013698,2]
[333860940,1722576639147,-151.0,0.00013698,2]
[333860941,1722576639156,-151.0,0.00013698,2]
[333860942,1722576639165,-151.0,0.00013698,2]
[333860943,1722576639174,-151.0,0.00013698,2]
[333860944,1722576639184,-151.0,0.00013698,2]
[333860945,1722576639194,-151.0,0.00013698,2]
[333860946,1722576639203,-151.0,0.00013698,2]
[333860947,1722576639212,-500.0,0.00013698,2]
[333860948,1722576639221,-500.0,0.00013698,2]
[333860949,1722576639230,-500.0,0.00013698,2]
[333860950,1722576639240,-500.0,0.00013698,2]
[333860951,1722576639249,-500.0,0.00013698,2]
[333860952,1722576639259,-513.48,0.00013698,2]
[333860953,1722576639268,-151.0,0.00013698,2]
[333860954,1722576639277,-151.0,0.00013698,2]
[333860955,1722576639287,-152.080337,0.00013698,2]
[333860956,1722576639296,-500.0,0.00013698,2]
[333860957,1722576639306,-505.40009072,0.00013698,2]
[333860958,1722576639316,-500.0,0.00013698,2]
[333860959,1722576639326,-505.35266872,0.00013698,2]
[333860960,1722576639335,-500.0,0.00013698,2]
[333860961,1722576639345,-565.07,0.00013698,2]
[333860962,1722576639354,-500.0,0.00013698,2]
[333860963,1722576639364,-500.0,0.00013698,2]
[333860964,1722576639376,-500.0,0.00013698,2]
[333860965,1722576639385,-500.0,0.00013698,2]
[333860966,1722576639394,-462.01777427,0.00013698,2]
[333860967,1722576639403,-500.0,0.00013698,2]
[333860968,1722576639412,-500.0,0.00013698,2]
[333860969,1722576639422,-500.0,0.00013698,2]
[333860970,1722576639432,-500.0,0.00013698,2]
[333860971,1722576639441,-500.0,0.00013698,2]
[333860972,1722576639450,-500.0,0.00013698,2]
[333860973,1722576639459,-500.0,0.00013698,2]
[333860974,1722576639469,-500.0,0.00013698,2]
[333860975,1722576639478,-500.0,0.00013698,2]
[333860976,1722576639487,-500.0,0.00013698,2]
[333860977,1722576639498,-500.0,0.00013698,2]
[333860978,1722576639508,-500.0,0.00013698,2]
[333860979,1722576639518,-307.2259258,0.00013698,2]
[333860980,1722576639528,-1122.36,0.00013698,2]
[333860981,1722576639537,-500.0,0.00013698,2]
[333860982,1722576639546,-214.02138479,0.00013698,2]
[333860983,1722576639556,-500.0,0.00013698,2]
[333860984,1722576639569,-500.0,0.00013698,2]
[333860985,1722576639579,-500.0,0.00013698,2]
[333860986,1722576639588,-500.0,0.00013698,2]
[333860987,1722576639597,-500.0,0.00013698,2]
[333860988,1722576639606,-638.08,0.00013698,2]
[333860989,1722576639615,-500.0,0.00013698,2]
[333860990,1722576639625,-505.98192642,0.00013698,2]
[333860991,1722576639635,-250.049559,0.00013698,2]
[333860992,1722576639644,-500.0,0.00013698,2]
[333860993,1722576639654,-500.0,0.00013698,2]
[333860994,1722576639663,-500.0,0.00013698,2]
[333860995,1722576639673,-500.0,0.00013698,2]
[333860996,1722576639682,-500.0,0.00013698,2]
[333860997,1722576639691,-500.0,0.00013698,2]
[333860998,1722576639701,-500.0,0.00013698,2]
[333860999,1722576639710,-571.11,0.00013698,2]
[333861000,1722576639720,-576.38898589,0.00013698,2]
[333861001,1722576639729,-590.30117116,0.00013698,2]
[333861002,1722576639739,-370.64561242,0.00013698,2]
[333861003,1722576639748,-500.0,0.00013698,2]
[333861004,1722576639757,-500.0,0.00013698,2]
[333861005,1722576639767,-180.45545628,0.00013698,2]
[333861008,1722576640672,-435.35640317,0.00013698,2]
[333861009,1722576640681,-500.0,0.00013698,2]
[333861010,1722576640691,-564.83,0.00013698,2]
[333861011,1722576640700,-500.0,0.00013698,2]
[333861012,1722576640709,-275.36435949,0.00013698,2]
[333861013,1722576640719,-500.0,0.00013698,2]
[333861014,1722576640728,-500.0,0.00013698,2]
[333861015,1722576640738,-500.0,0.00013698,2]
[333861016,1722576640748,-724.39,0.00013698,2]
[333861017,1722576640757,-507.61732764,0.00013698,2]
[333861018,1722576640766,-500.0,0.00013698,2]
[333861019,1722576640775,-500.0,0.00013698,2]
[333861020,1722576640785,-500.0,0.00013698,2]
[333861021,1722576640794,-151.0,0.00013698,2]
[333861022,1722576640803,-151.0,0.00013698,2]
[333861023,1722576640812,-151.0,0.00013698,2]
[333861024,1722576640823,-151.0,0.00013698,2]
[333861025,1722576640835,-151.0,0.00013698,2]
[333861026,1722576640845,-151.0,0.00013698,2]
[333861027,1722576640854,-151.0,0.00013698,2]
[333861028,1722576640863,-151.0,0.00013698,2]
[333861029,1722576640875,-151.0,0.00013698,2]
[333861030,1722576640884,-151.0,0.00013698,2]
[333861031,1722576640893,-151.0,0.00013698,2]
[333861032,1722576640904,-500.0,0.00013698,2]
[333861033,1722576640913,-151.0,0.00013698,2]
[333861034,1722576640922,-500.0,0.00013698,2]
[333861035,1722576640931,-233.140157,0.00013698,2]
[333861036,1722576640940,-225.29031351,0.00013698,2]
[333861037,1722576640949,-500.0,0.00013698,2]
[333861038,1722576640958,-500.0,0.00013698,2]
[333861039,1722576640968,-500.0,0.00013698,2]
[333861040,1722576640977,-505.3899588,0.00013698,2]
[333861041,1722576640987,-500.0,0.00013698,2]
[333861042,1722576640996,-500.0,0.00013698,2]
[333861043,1722576641005,-500.0,0.00013698,2]
[333861044,1722576641015,-500.0,0.00013698,2]
[333861045,1722576641024,-500.0,0.00013698,2]
[333861046,1722576641034,-151.0,0.00013698,2]
[333861047,1722576641044,-500.0,0.00013698,2]
[333861048,1722576641053,-151.0,0.00013698,2]
[333861049,1722576641062,-151.0,0.00013698,2]
[333861050,1722576641071,-151.0,0.00013698,2]
[333861051,1722576641081,-151.0,0.00013698,2]
[333861052,1722576641090,-151.0,0.00013698,2]
[333861053,1722576641099,-151.0,0.00013698,2]
[333861054,1722576641108,-151.0,0.00013698,2]
[333861055,1722576641117,-151.0,0.00013698,2]
[333861056,1722576641127,-151.0,0.00013698,2]
[333861057,1722576641137,-151.0,0.00013698,2]
[333861058,1722576641146,-151.0,0.00013698,2]
[333861059,1722576641155,-177.415216,0.00013698,2]
[333861060,1722576641165,-151.0,0.00013698,2]
[333861061,1722576641174,-151.0,0.00013698,2]
[333861062,1722576641183,-151.0,0.00013698,2]
[333861063,1722576641192,-151.0,0.00013698,2]
[333861064,1722576641201,-151.0,0.00013698,2]
[333861065,1722576641210,-151.0,0.00013698,2]
[333861066,1722576641220,-151.0,0.00013698,2]
[333861067,1722576641229,-151.0,0.00013698,2]
[333861068,1722576641239,-203.090868,0.00013698,2]
[333861069,1722576641248,-500.0,0.00013698,2]
[333861070,1722576641258,-500.0,0.00013698,2]
[333861071,1722576641268,-500.0,0.00013698,2]
[333861072,1722576641278,-500.0,0.00013698,2]
[333861073,1722576641287,-283.75694344,0.00013698,2]
[333861074,1722576641296,-500.0,0.00013698,2]
[333861075,1722576641306,-500.0,0.00013698,2]
[333861076,1722576641315,-783.15,0.00013698,2]
[333861077,1722576641324,-500.0,0.00013698,2]
[333861078,1722576641333,-500.0,0.00013698,2]
[333861079,1722576641342,-501.19420711,0.00013698,2]
[333861080,1722576641352,-500.0,0.00013698,2]
[333861081,1722576641361,-500.0,0.00013698,2]
[333861082,1722576641370,-500.0,0.00013698,2]
[333861083,1722576641382,-500.0,0.00013698,2]
[333861084,1722576641392,-1041.07,0.00013698,2]
[333861085,1722576641401,-500.0,0.00013698,2]
[333861086,1722576641413,-500.0,0.00013698,2]
[333861087,1722576641422,-339.28606843,0.00013698,2]
[333861088,1722576641438,-1231.2,0.00013698,2]
[333861089,1722576641447,-500.0,0.00013698,2]
[333861090,1722576641456,-151.0,0.00013698,2]
[333861091,1722576641467,-9.09453388,0.00013698,2]
[333861092,1722576641528,-141.90546612,0.00013698,2]
[333861093,1722576641537,-151.0,0.00013698,2]
[333861094,1722576641546,-1131.05,0.00013698,2]
[333861095,1722576641555,-643.11,0.00013698,2]
[333861096,1722576641565,-500.0,0.00013698,2]
[333861097,1722576641574,-300.54956913,0.00013698,2]
[333861098,1722576641583,-869.37,0.00013698,2]
[333861099,1722576641592,-500.0,0.00013698,2]
[333861100,1722576641601,-500.0,0.00013698,2]
[333861101,1722576641610,-500.0,0.00013698,2]
[333861102,1722576641619,-510.79640168,0.00013698,2]
[333861103,1722576641629,-500.0,0.00013698,2]
[333861104,1722576641638,-500.0,0.00013698,2]
[333861105,1722576641648,-1150.59,0.00013698,2]
[333861106,1722576641657,-500.0,0.00013698,2]
[333861107,1722576641666,-500.0,0.00013698,2]
[333861108,1722576641675,-5580.44,0.00013698,2]
[333861109,1722576641684,-2884.04,0.00013698,2]
[333861110,1722576641693,-511.54114746,0.00013698,2]
[333861111,1722576641702,-500.0,0.00013698,2]
[333861112,1722576641802,-510.9237562,0.00013698,2]